bitfinex/quotes_ETHUSD_20251108
["timestamp","ask_amount","ask_price","bid_price","bid_amount"]
[1762581892223,0.4831,3433.1,3432.2,2.91358312]
[1762581892224,0.62117778,3433.1,3432.2,2.91358312]
[1762581892460,1.10427778,3433.3,3432.8,2.91302579]
[1762581892650,0.4831,3433.3,3432.8,2.91302579]
[1762581892851,0.4607,3432.9,3432.8,2.91302579]
[1762581893162,0.62117778,3433.3,3432.9,2.91295755]
[1762581893346,0.62117778,3433.4,3432.2,0.02913583]
[1762581893668,0.62117778,3433.5,3433.2,2.91268312]
[1762581893868,0.4831,3433.5,3433.2,2.91273434]
[1762581894048,0.4607,3433.3,3433.2,2.91273434]
[1762581894424,0.9438,3433.3,3433.0,2.91283871]
[1762581894736,0.3653,3433.1,3433.0,2.91290416]
[1762581894937,0.4831,3433.3,3433.1,2.91273637]
[1762581895348,0.4607,3433.2,3433.1,2.91273637]
[1762581895523,0.4607,3433.2,3433.0,2.91288835]
[1762581895722,0.4831,3433.1,3433.0,2.91288835]
[1762581895957,0.9438,3433.1,3433.0,2.91288835]
[1762581896159,0.9438,3433.1,3432.9,3.05856195]
[1762581896373,0.8484,3433.0,3432.1,0.006]
[1762581896540,0.5549,3432.2,3432.1,0.006]
[1762581896878,3.46848312,3432.2,3432.1,0.006]
[1762581897160,5.8324729,3432.2,3432.1,0.006]
[1762581897767,2.91888978,3432.2,3432.1,0.006]
[1762581897970,5.8324729,3432.2,3432.1,0.006]
[1762581898172,6.8878166,3432.2,3432.1,0.006]
[1762581898676,7.66211397,3432.2,3432.1,0.006]
[1762581900377,6.8878166,3432.2,3432.1,0.006]
[1762581901335,3.97423348,3432.2,3432.1,0.006]
[1762581901693,1.259712,3432.1,3431.6,2.74246761]
[1762581901986,0.6466,3431.7,3431.1,0.006]
[1762581902138,0.62117778,3431.9,3431.6,0.4538]
[1762581902336,0.62117778,3432.0,3431.9,2.91383781]
[1762581902585,0.1859,3433.0,3431.9,2.91383781]
[1762581902586,0.1868,3432.9,3431.9,0.62762291]
[1762581902743,0.1868,3432.9,3432.3,2.91342754]
[1762581902941,0.1868,3432.9,3431.9,0.4619]
[1762581902942,0.4659,3432.4,3431.0,0.157]
[1762581903249,0.4659,3432.4,3431.3,2.91429252]
[1762581903447,1.86204254,3432.3,3431.2,2.9144216]
[1762581903652,0.6230268,3432.2,3431.1,0.006]
[1762581903853,1.259712,3432.0,3431.2,2.91435475]
[1762581904053,0.6230268,3431.9,3431.3,2.91434566]
[1762581904237,1.2707268,3431.9,3431.1,0.006]
[1762581904440,1.01090999,3432.1,3431.2,0.6564]
[1762581904441,0.6230268,3431.8,3431.2,0.6564]
[1762581904648,0.23279425,3432.1,3431.5,2.91416056]
[1762581904851,0.85582105,3432.1,3431.2,0.6564]
[1762581905051,0.6230268,3432.1,3431.8,2.91386017]
[1762581905317,0.6230268,3432.1,3431.2,3.4290972]
[1762581905318,1.40114254,3432.3,3431.2,3.0714292]
[1762581905582,0.4609,3432.1,3431.6,2.91407068]
[1762581905752,1.68744633,3432.1,3431.7,2.91400596]
[1762581905961,0.6230268,3432.0,3431.6,2.91409255]
[1762581906264,1.06441953,3432.1,3431.6,2.91409255]
[1762581906471,0.6065,3432.0,3431.7,2.91397481]
[1762581906788,0.1456,3432.0,3431.7,2.91397481]
[1762581906990,0.1456,3432.0,3431.5,3.05977573]
[1762581906991,0.1456,3432.0,3431.6,2.91407376]
[1762581907169,0.6477,3431.9,3431.5,3.05975137]
[1762581907670,0.6477,3431.9,3431.6,2.9140811]
[1762581907846,0.6477,3431.9,3431.5,0.1456]
[1762581908379,0.6477,3431.9,3431.6,2.91409058]
[1762581908560,0.6477,3431.9,3431.5,3.05975537]
[1762581909209,0.1868,3431.9,3431.6,2.91408971]
[1762581909711,0.1868,3431.9,3431.5,0.1456]
[1762581909892,0.1868,3431.9,3431.5,3.05976522]
[1762581910905,0.1868,3431.9,3431.6,2.91408553]
[1762581911068,0.7686268,3432.0,3431.6,2.91408553]
[1762581912112,0.7686268,3432.0,3431.5,3.05974969]
[1762581912591,0.6065,3432.0,3431.5,3.05974969]
[1762581912821,1.2295268,3432.0,3431.5,0.1456]
[1762581913368,1.2295268,3432.0,3431.5,3.05977293]
[1762581913672,1.2295268,3432.0,3431.6,2.91406273]
[1762581913883,1.2295268,3432.0,3431.5,3.05975093]
[1762581914119,0.1868,3431.9,3431.5,0.1456]
[1762581914294,0.4659,3431.6,3431.3,0.001]
[1762581914464,0.3132,3431.4,3431.3,0.001]
[1762581915108,0.1456,3431.7,3431.3,0.001]
[1762581915406,0.6065,3431.7,3431.3,0.001]
[1762581915717,0.4659,3431.4,3431.3,0.001]
[1762581918513,0.4609,3431.6,3431.3,0.001]
[1762581919027,0.4659,3431.4,3431.3,0.001]
[1762581919229,0.9268,3431.4,3431.3,0.001]
[1762581919617,3.8410624,3431.4,3431.3,0.001]
[1762581919819,6.47545325,3431.4,3431.3,0.001]
[1762581921628,7.25356899,3431.4,3431.3,0.001]
[1762581921834,7.65907299,3431.4,3431.3,0.001]
[1762581922015,7.91418814,3431.4,3431.3,0.001]
[1762581923431,6.88095725,3431.4,3431.3,0.001]
[1762581924155,7.91418814,3431.4,3431.3,0.001]
[1762581924662,8.03099675,3431.4,3431.3,0.001]
[1762581925313,6.59226186,3431.4,3431.3,0.001]
[1762581925755,3.67799946,3431.4,3431.3,0.001]
[1762581925954,6.47545325,3431.4,3431.3,0.001]
[1762581926253,5.21574125,3431.4,3431.3,0.001]
[1762581926455,6.47545325,3431.4,3431.3,0.001]
[1762581926827,6.88095725,3431.4,3431.3,0.001]
[1762581928222,12.15804486,3431.4,3431.3,0.001]
[1762581928615,4.57964826,3431.2,3431.1,0.006]
[1762581928928,8.71724074,3431.2,3431.1,0.006]
[1762581929141,9.17814074,3431.2,3431.1,0.006]
[1762581932366,7.62389358,3431.2,3431.1,0.006]
[1762581932567,7.74072095,3431.2,3431.1,0.006]
[1762581934182,7.74072095,3431.2,3430.9,0.001]
[1762581934183,9.29496811,3431.2,3430.9,0.001]
[1762581934389,5.04421815,3431.0,3430.9,0.001]
[1762581934559,5.04421815,3431.0,3430.1,0.005]
[1762581934560,2.9152819,3430.2,3430.1,0.005]
[1762581934855,2.9152819,3430.2,3429.1,0.005]
[1762581934856,1.720412,3430.1,3429.2,0.1592]
[1762581935054,1.39836213,3430.0,3429.2,3.55042669]
[1762581935258,0.62236641,3430.0,3429.2,1.28147109]
[1762581935468,1.03466096,3430.6,3429.9,0.4547]
[1762581935469,0.62236641,3430.2,3429.9,0.4547]
[1762581935817,0.62236641,3430.3,3429.9,0.4547]
[1762581936117,0.62236641,3430.4,3429.7,2.91563625]
[1762581936311,0.77599572,3430.6,3429.7,2.91563625]
[1762581936312,0.62236641,3430.6,3430.0,0.4751]
[1762581936632,1.259712,3430.7,3430.3,0.4547]
[1762581936780,0.62236641,3430.6,3430.3,0.4547]
[1762581937318,0.62236641,3430.6,3430.5,0.4547]
[1762581937519,1.55424716,3431.3,3430.5,0.4547]
[1762581937520,0.62236641,3430.7,3430.5,0.4547]
[1762581937825,1.03466096,3431.3,3431.2,0.157]
[1762581937826,0.4751,3431.3,3431.2,0.157]
[1762581938127,0.62096048,3431.7,3431.2,0.6117]
[1762581938420,0.62096048,3431.8,3431.2,0.6117]
[1762581938625,2.91884143,3431.9,3431.2,0.6117]
[1762581938775,1.259712,3431.7,3431.2,0.6117]
[1762581938971,3.96667844,3431.8,3430.1,0.157]
[1762581938972,0.62096048,3431.6,3431.0,0.4751]
[1762581939218,0.62096048,3431.7,3431.0,0.4751]
[1762581939417,1.76911712,3431.7,3431.0,0.4751]
[1762581939737,0.62096048,3431.6,3431.0,0.4751]
[1762581940799,1.88067248,3431.6,3430.8,0.6321]
[1762581941144,0.62096048,3431.5,3430.8,0.6321]
[1762581941338,0.62096048,3431.5,3430.8,3.54686505]
[1762581941634,0.62096048,3431.6,3430.8,0.6321]
[1762581942006,0.62096048,3431.6,3430.8,3.54686678]
[1762581942210,0.62096048,3431.6,3430.8,3.40032678]
[1762581942408,0.62096048,3431.6,3431.5,0.469]
[1762581942613,0.005,3431.9,3431.5,0.469]
[1762581944042,0.62596048,3431.9,3431.5,0.469]
[1762581944198,0.005,3431.9,3431.5,0.9526]
[1762581944628,0.005,3431.9,3431.8,0.469]
[1762581945841,0.005,3431.9,3431.8,0.9526]
[1762581946341,0.005,3431.9,3431.8,0.469]
[1762581953047,0.005,3431.9,3431.8,0.9526]
[1762581953437,0.005,3431.9,3431.8,0.469]
[1762581956453,0.1506,3431.9,3431.8,0.469]
[1762581960418,0.1506,3431.9,3431.8,0.9526]
[1762581960723,0.1506,3431.9,3431.8,0.469]
[1762581961658,0.005,3431.9,3431.8,4.25320033]
[1762581961864,0.005,3431.9,3431.8,3.86652272]
[1762581962224,0.002,3432.1,3432.0,3.31925691]
[1762581962429,0.005,3432.9,3432.6,2.9132436]
[1762581962626,0.005,3432.9,3432.8,3.38507387]
[1762581962876,0.005,3432.9,3432.8,4.01781878]
[1762581963028,0.005,3432.9,3432.8,4.50141878]
[1762581963527,0.00500001,3433.9,3433.7,2.91226932]
[1762581963865,0.00500001,3433.9,3433.8,0.6312]
[1762581964553,0.00500001,3433.9,3433.8,3.54342552]
[1762581964752,0.00500001,3433.9,3433.8,4.02702552]
[1762581965265,0.00500001,3433.9,3433.8,1.1148]
[1762581965435,0.00500001,3433.9,3433.5,3.07166389]
[1762581965639,0.00500001,3433.9,3433.8,3.38422552]
[1762581966068,0.00500001,3433.9,3433.8,4.5617675]
[1762581966624,0.00500001,3433.9,3433.8,4.59088975]
[1762581967033,0.00500001,3433.9,3433.8,4.5617675]
[1762581967231,0.00500001,3433.9,3433.8,4.9672715]
[1762581968178,0.002,3434.6,3434.5,2.91163196]
[1762581968333,0.002,3434.6,3434.5,4.75041142]
[1762581968532,0.002,3434.6,3434.5,5.23401142]
[1762581970852,0.002,3434.6,3434.5,5.26312773]
[1762581971059,0.002,3434.6,3434.5,5.23401142]
[1762581971655,0.002,3434.6,3434.5,5.37881142]
[1762581972263,0.002,3434.6,3434.5,6.63852342]
[1762581973557,0.005,3434.9,3434.8,4.57659366]
[1762581973757,0.005,3434.9,3434.8,6.29473138]
[1762581973962,0.005,3434.9,3434.8,6.92313138]
[1762581975286,0.005,3434.9,3434.8,6.03402738]
[1762581975592,0.005,3434.9,3434.8,6.51762738]
[1762581976148,0.005,3434.9,3434.2,3.48481869]
[1762581976149,1.1375,3434.9,3434.2,0.1675]
[1762581976490,0.4918,3434.3,3433.9,2.91208002]
[1762581976704,0.4918,3434.3,3433.4,1.259712]
[1762581976886,0.005,3434.9,3434.8,2.91137766]
[1762581977099,0.005,3434.9,3434.8,0.472]
[1762581977397,0.005,3434.9,3434.6,2.91154719]
[1762581977564,0.005,3434.9,3434.7,2.91143755]
[1762581977759,0.005,3434.9,3434.8,2.91137766]
[1762581978005,0.005,3434.9,3434.4,2.91170422]
[1762581978207,0.005,3434.9,3434.7,2.91145534]
[1762581978980,0.005,3434.9,3434.8,3.86697766]
[1762581979700,0.005,3434.9,3434.8,3.89609143]
[1762581979875,0.005,3434.9,3434.8,3.86697766]
[1762581980462,0.005,3434.9,3434.8,4.27248166]
[1762581980795,0.005,3434.9,3434.8,4.99086847]
[1762581981874,0.007,3434.9,3434.8,4.99086847]
[1762581983061,1e-08,3434.9,3434.8,6.25058047]
[1762581986197,1e-08,3434.9,3434.8,6.39538047]
[1762581991516,1e-08,3434.9,3434.8,5.98987647]
[1762581992378,1e-08,3434.9,3434.8,5.50627647]
[1762581993006,1e-08,3434.9,3434.8,5.91178047]
[1762581994390,1e-08,3434.9,3434.8,6.37058047]
[1762581999520,1e-08,3434.9,3434.8,6.37158047]
[1762582002733,1e-08,3434.9,3434.8,6.22678047]
[1762582004642,1e-08,3434.9,3434.8,6.23428047]
[1762582005247,1e-08,3434.9,3434.8,5.76798047]
[1762582006076,1e-08,3434.9,3434.8,4.89047647]
[1762582006077,0.48590001,3434.9,3434.8,4.89047647]
[1762582006279,1e-08,3434.9,3434.8,5.29598047]
[1762582006631,1e-08,3434.9,3434.8,5.81367647]
[1762582006884,1e-08,3434.9,3434.8,6.21918047]
[1762582012991,1e-08,3434.9,3434.8,6.36398047]
[1762582014694,1e-08,3435.6,3435.5,3.31628845]
[1762582014897,1e-08,3435.6,3435.5,5.3645293]
[1762582015204,1e-08,3435.6,3435.5,4.9076293]
[1762582015391,0.48590001,3435.6,3435.5,4.9076293]
[1762582015594,1e-08,3435.6,3435.5,5.3645293]
[1762582016806,1e-08,3435.6,3435.5,4.9076293]
[1762582017326,0.48590001,3435.6,3435.5,4.9076293]
[1762582017479,1e-08,3435.6,3435.5,4.9076293]
[1762582017922,1e-08,3435.6,3435.5,5.3645293]
[1762582018428,0.96760001,3435.6,3435.5,4.9076293]
[1762582018894,0.48590001,3435.6,3435.5,4.9076293]
[1762582019099,1e-08,3435.6,3435.5,4.9076293]
[1762582019302,1e-08,3435.6,3435.5,5.3645293]
[1762582019722,1e-08,3435.6,3435.5,4.9076293]
[1762582020827,1e-08,3435.6,3435.5,5.39363714]
[1762582021031,1e-08,3435.6,3435.5,5.3645293]
[1762582021332,0.96760001,3435.6,3435.5,4.9076293]
[1762582021704,1e-08,3435.6,3435.5,5.3645293]
[1762582021922,0.007,3436.9,3435.5,5.3645293]
[1762582021923,0.007,3436.9,3436.4,3.31552611]
[1762582022239,0.007,3436.9,3436.4,5.68380273]
[1762582022413,0.007,3436.9,3436.4,6.10660251]
[1762582022818,0.002,3437.2,3437.1,3.31493346]
[1762582023001,0.002,3437.2,3437.1,5.05824546]
[1762582023216,0.002,3437.2,3437.1,5.21744546]
[1762582023406,0.002,3437.2,3437.1,6.03014285]
[1762582024814,0.002,3437.2,3437.1,6.62684285]
[1762582025000,1e-08,3437.4,3437.3,5.05807617]
[1762582025331,1e-08,3437.4,3437.3,5.50997617]
[1762582025632,1e-08,3437.4,3437.3,6.60837801]
[1762582025988,1e-08,3437.4,3437.3,6.46357801]
[1762582026615,0.1947,3438.3,3437.8,3.31434104]
[1762582026816,0.1947,3438.3,3437.8,4.57405304]
[1762582027029,0.1947,3438.3,3437.8,5.05765304]
[1762582027231,0.4995,3437.9,3437.8,5.37071897]
[1762582027414,0.005,3437.9,3437.8,5.85431897]
[1762582027615,0.005,3437.9,3437.8,5.37071897]
[1762582027913,0.005,3437.9,3437.8,5.85431897]
[1762582030012,1e-08,3437.9,3437.8,6.30621897]
[1762582031203,1e-08,3437.9,3437.8,11.8649621]
[1762582032204,0.49450001,3437.9,3437.8,4.96521497]
[1762582033038,1e-08,3437.9,3437.8,5.44881497]
[1762582033342,1e-08,3437.9,3437.8,11.8649621]
[1762582034926,0.00200001,3437.9,3437.8,11.8649621]
[1762582035330,0.00200001,3437.9,3437.8,11.4130621]
[1762582035729,0.00200001,3437.9,3437.8,11.8649621]
[1762582035931,0.00200001,3437.9,3437.8,12.0097621]
[1762582036255,0.00200001,3437.9,3437.8,11.5578621]
[1762582037119,0.49650001,3437.9,3437.8,5.51551897]
[1762582037545,0.49650001,3437.9,3437.8,5.11001497]
[1762582038267,1.16590001,3437.9,3437.8,4.31334904]
[1762582038638,1.16590001,3437.9,3437.8,4.71885304]
[1762582039845,1.16590001,3437.9,3437.1,0.81269739]
[1762582040044,1.16590001,3437.9,3437.8,2.90883704]
[1762582040045,0.19670001,3437.9,3437.8,2.90883704]
[1762582040247,0.69120001,3437.9,3437.8,2.90883704]
[1762582040811,1.16590001,3437.9,3437.8,2.90883704]
[1762582041931,1.16590001,3437.9,3437.8,3.31434104]
[1762582042149,0.00200001,3437.9,3437.8,3.31434104]
[1762582042351,0.00200001,3437.9,3437.8,5.22546893]
[1762582042587,0.00200001,3437.9,3437.8,5.19638056]
[1762582042789,1.16590001,3437.9,3437.8,4.57405304]
[1762582042995,1.16590001,3437.9,3437.8,3.31434104]
[1762582043350,1.16590001,3437.9,3437.8,2.90883704]
[1762582044485,1.16590001,3437.9,3437.8,3.34342941]
[1762582044713,1.16590001,3437.9,3437.8,3.31434104]
[1762582045091,1.16590001,3437.9,3437.3,1.259712]
[1762582045295,0.4929,3437.4,3436.3,5.71574313]
[1762582045492,0.4747,3437.8,3436.3,0.4801]
[1762582045792,0.4747,3437.7,3436.3,0.3231]
[1762582045986,0.4747,3437.7,3437.2,2.90928976]
[1762582046181,0.4747,3437.7,3436.7,3.31527134]
[1762582046182,0.4747,3437.7,3437.4,2.90909647]
[1762582046416,0.4747,3437.7,3437.3,2.90925344]
[1762582046718,0.4747,3437.7,3437.3,2.90925163]
[1762582046909,0.4945,3437.4,3437.3,2.90925163]
[1762582047396,0.9692,3437.4,3437.3,2.90925163]
[1762582047597,0.9692,3437.4,3437.1,2.90941727]
[1762582047795,0.19670001,3437.9,3436.7,2.90971227]
[1762582047796,0.3349,3437.2,3436.7,2.90971227]
[1762582048091,0.4747,3437.3,3436.5,2.90993743]
[1762582048092,0.6892,3436.6,3436.5,2.90993743]
[1762582048278,1.1639,3436.6,3436.5,2.90993743]
[1762582049917,1.1639,3436.6,3436.5,3.05473743]
[1762582050332,0.19670001,3437.9,3436.7,2.90969714]
[1762582050479,0.1947,3437.1,3437.0,2.90951411]
[1762582050682,0.6892,3437.1,3437.0,3.05431411]
[1762582051110,0.4945,3437.1,3437.0,3.05431411]
[1762582051312,2.90953456,3437.0,3435.1,0.005]
[1762582051511,0.5447,3435.2,3435.1,2.91608007]
[1762582051829,1.0194,3435.2,3435.1,0.005]
[1762582052127,1.0194,3435.2,3435.1,2.9161234]
[1762582052485,1.0194,3435.2,3435.1,0.005]
[1762582052927,1.0194,3435.2,3435.1,2.9161234]
[1762582053125,1.0194,3435.2,3435.1,0.005]
[1762582054816,1.41242003,3435.2,3435.1,0.005]
[1762582055332,1.0194,3435.2,3435.1,0.005]
[1762582060932,1.0194,3435.2,3435.1,2.9161234]
[1762582061319,1.0194,3435.2,3435.1,3.0609234]
[1762582061835,1.0194,3435.2,3435.1,0.1498]
[1762582062025,1.0194,3435.2,3435.1,0.005]
[1762582062361,1.0194,3435.2,3435.1,2.9161234]
[1762582062564,1.0194,3435.2,3435.1,3.0609234]
[1762582062928,1.0194,3435.2,3435.1,0.1498]
[1762582063387,1.0194,3435.2,3435.1,0.005]
[1762582063924,1.2617912,3435.2,3435.1,0.005]
[1762582064864,1.0194,3435.2,3435.1,2.9161234]
[1762582065628,1.0194,3435.2,3435.1,0.005]
[1762582069153,3.93043865,3435.2,3435.1,0.005]
[1762582069351,5.66155842,3435.2,3435.1,0.005]
[1762582069557,5.19015065,3435.2,3435.1,0.005]
[1762582069756,6.04203268,3435.2,3435.1,0.005]
[1762582070491,6.04203268,3435.2,3435.1,0.006]
[1762582070917,3.13099403,3435.2,3435.1,0.006]
[1762582071266,6.04203268,3435.2,3435.1,0.006]
[1762582071469,5.19015065,3435.2,3435.1,0.006]
[1762582071978,2.73576597,3435.2,3435.1,0.006]
[1762582072289,5.64680462,3435.2,3435.1,0.006]
[1762582074195,6.26513279,3435.2,3435.1,0.006]
[1762582074395,7.58823744,3435.2,3435.1,0.006]
[1762582074556,8.83007524,3435.2,3435.1,0.006]
[1762582074790,15.31007524,3435.2,3435.1,0.006]
[1762582075014,15.31007524,3435.2,3434.8,0.001]
[1762582075015,4.5765089,3434.9,3434.8,0.001]
[1762582075198,8.18136593,3434.9,3434.8,0.001]
[1762582075413,8.67416593,3434.9,3434.8,0.001]
[1762582076619,8.67416593,3434.9,3433.1,0.006]
[1762582076620,0.405504,3434.1,3433.1,0.006]
[1762582076798,2.91273447,3433.2,3433.1,0.006]
[1762582076995,1.259712,3432.9,3432.1,0.005]
[1762582077293,2.397412,3432.9,3432.2,2.91356949]
[1762582077722,2.397412,3432.9,3432.1,0.1506]
[1762582077921,2.397412,3432.9,3432.1,0.005]
[1762582078137,0.6449,3432.9,3432.7,2.91313706]
[1762582078297,0.1456,3433.1,3432.5,0.1456]
[1762582078499,0.4705,3432.9,3432.7,2.91309948]
[1762582079632,1.1565,3432.9,3432.5,0.1456]
[1762582080061,1.70395624,3432.9,3432.5,0.1456]
[1762582080357,1.1565,3432.9,3432.6,2.91322011]
[1762582080580,1.1565,3432.9,3432.5,0.1456]
[1762582081019,0.87258917,3433.6,3432.8,0.4804]
[1762582081020,1.36538917,3433.6,3432.8,0.4804]
[1762582081218,0.1456,3433.4,3432.8,0.1466]
[1762582081447,0.76450194,3433.4,3432.8,3.05965212]
[1762582081649,0.6384,3433.4,3432.8,0.1466]
[1762582081834,0.0993,3433.6,3432.8,0.001]
[1762582082036,0.4928,3433.5,3433.0,3.05848872]
[1762582082259,0.4928,3433.5,3433.1,2.91281634]
[1762582082260,1.04574778,3433.5,3433.1,2.91281634]
[1762582082460,0.4776,3433.1,3433.0,3.05848634]
[1762582082955,0.4776,3433.1,3433.0,0.1456]
[1762582083168,0.9565,3433.1,3433.0,0.1456]
[1762582083921,0.9565,3433.1,3432.8,0.001]
[1762582084166,0.5585,3432.9,3432.8,0.001]
[1762582084323,0.73877407,3432.9,3432.8,0.001]
[1762582084523,1.21767407,3432.9,3432.8,0.001]
[1762582084972,1.8371651,3432.9,3432.8,0.001]
[1762582085124,1.21767407,3432.9,3432.8,0.001]
[1762582085328,1.83694517,3432.9,3432.8,0.001]
[1762582085530,4.74993418,3432.9,3432.8,0.001]
[1762582085728,7.24978458,3432.9,3432.8,0.001]
[1762582086017,2.91358312,3432.2,3432.1,0.005]
[1762582086174,4.94225343,3432.2,3432.1,0.005]
[1762582086378,6.45733371,3432.2,3432.1,0.005]
[1762582086558,7.2313253,3432.2,3432.1,0.005]
[1762582086731,6.81441612,3432.2,3432.1,0.005]
[1762582086939,6.86283771,3432.2,3432.1,0.005]
[1762582087137,7.28056293,3432.2,3432.1,0.005]
[1762582087360,7.47572605,3432.2,3432.1,0.005]
[1762582088332,6.44592853,3432.2,3432.1,0.005]
[1762582088532,7.28056293,3432.2,3432.1,0.006]
[1762582089364,8.82206793,3432.2,3432.1,0.006]
[1762582089533,2.91392272,3431.8,3431.7,0.001]
[1762582089751,6.33169049,3431.8,3431.7,0.001]
[1762582089967,6.81059049,3431.8,3431.7,0.001]
[1762582090689,7.58076319,3431.8,3431.7,0.001]
[1762582091392,6.81059049,3431.8,3431.7,0.001]
[1762582091879,6.40508649,3431.8,3431.7,0.001]
[1762582092281,2.7418831,3431.8,3431.7,0.001]
[1762582092593,5.03653472,3431.8,3431.7,0.001]
[1762582092898,0.7701727,3432.3,3431.7,0.001]
[1762582092899,0.4789,3432.3,3431.7,0.001]
[1762582093210,1.738612,3432.3,3431.7,0.001]
[1762582093372,0.7701727,3432.8,3431.7,0.001]
[1762582093373,1.2490727,3432.8,3431.7,0.001]
[1762582093569,0.4776,3431.8,3431.7,0.001]
[1762582093901,0.6609,3431.8,3431.7,0.001]
[1762582094601,5.31343472,3431.8,3431.7,0.001]
[1762582095096,5.92927052,3431.8,3431.7,0.001]
[1762582095299,3.31968147,3431.5,3431.4,0.001]
[1762582095469,7.28170351,3431.5,3431.4,0.001]
[1762582095669,6.87619951,3431.5,3431.4,0.001]
[1762582096500,6.87619951,3431.5,3430.4,0.001]
[1762582096501,0.405504,3431.0,3430.4,0.001]
[1762582096800,4.5804979,3430.2,3430.1,0.005]
[1762582096997,6.86665236,3430.2,3430.1,0.005]
[1762582097712,6.46114836,3430.2,3430.1,0.005]
[1762582098420,3.06696646,3430.2,3430.1,0.005]
[1762582098615,5.37971305,3430.2,3430.1,0.005]
[1762582099679,1.71703115,3430.2,3430.1,0.005]
[1762582100682,0.45731915,3430.2,3430.1,0.6922]
[1762582100873,2.91483783,3430.8,3430.1,0.6922]
[1762582101074,0.4776,3430.2,3430.1,0.005]
[1762582101312,2.216212,3430.2,3430.1,0.005]
[1762582101502,2.03592492,3430.2,3430.1,0.005]
[1762582101905,4.95120682,3430.2,3430.1,0.005]
[1762582102116,2.03592492,3430.2,3430.1,0.005]
[1762582102291,4.95120682,3430.2,3430.1,0.005]
[1762582102494,4.47360682,3430.2,3430.1,0.005]
[1762582103419,1.55832492,3430.2,3430.1,0.005]
[1762582103619,1.259712,3430.2,3430.1,0.005]
[1762582105006,0.45726988,3430.5,3430.1,0.5013]
[1762582105183,0.61711899,3430.7,3430.4,0.4963]
[1762582105381,0.1977831,3430.6,3430.4,0.4963]
[1762582105586,0.61711899,3430.8,3430.4,0.4963]
[1762582106381,0.101,3430.9,3430.4,0.4963]
[1762582106595,0.1456,3430.7,3430.4,0.4963]
[1762582107023,0.1456,3430.7,3430.6,0.4963]
[1762582107195,0.1456,3430.7,3430.1,0.3425]
[1762582107581,0.1456,3430.7,3430.1,3.2578551]
[1762582107889,3.67759444,3430.7,3430.1,0.1516]
[1762582108091,0.97868221,3430.7,3430.1,0.1516]
[1762582108423,3.53935831,3430.7,3430.1,0.1516]
[1762582108843,2.914952,3430.6,3430.1,0.1516]
[1762582109343,2.91511361,3430.4,3430.1,0.006]
[1762582109643,0.1456,3430.3,3430.1,0.006]
[1762582109807,0.4789,3430.6,3430.1,0.006]
[1762582110003,2.91526633,3430.3,3430.1,0.006]
[1762582110450,4.6525939,3430.2,3430.1,0.006]
[1762582110745,5.27110898,3430.2,3430.1,0.006]
[1762582110909,5.75000898,3430.2,3430.1,0.006]
[1762582111217,6.15551298,3430.2,3430.1,0.006]
[1762582111548,8.19301361,3430.2,3430.1,0.006]
[1762582111704,7.16534299,3430.2,3430.1,0.006]
[1762582113230,6.75983899,3430.2,3430.1,0.006]
[1762582113430,8.30134399,3430.2,3430.1,0.006]
[1762582114305,6.75983899,3430.2,3430.1,0.006]
[1762582115451,4.17508863,3430.1,3429.7,0.001]
[1762582115660,5.20978176,3429.9,3429.7,0.001]
[1762582115823,0.61851508,3429.8,3429.7,0.001]
[1762582116178,5.02000815,3429.8,3429.7,0.001]
[1762582116376,6.77932015,3429.8,3429.7,0.001]
[1762582116670,7.29655574,3429.8,3429.7,0.001]
[1762582116857,8.44543681,3429.8,3429.7,0.001]
[1762582117237,6.89373005,3429.8,3429.7,0.001]
[1762582118966,6.39413005,3429.8,3429.7,0.001]
[1762582119274,6.89373005,3429.8,3429.7,0.001]
[1762582120979,8.4440849,3429.8,3429.7,0.001]
[1762582121287,6.89373005,3429.8,3429.7,0.001]
[1762582121845,7.76800331,3429.8,3429.7,0.001]
[1762582123393,8.18781615,3429.8,3429.7,0.001]
[1762582123997,8.59332015,3429.8,3429.7,0.001]
[1762582124142,8.59332015,3429.8,3429.6,0.001]
[1762582124143,4.99783209,3429.7,3429.6,0.001]
[1762582124478,7.58178826,3429.7,3429.6,0.001]
[1762582124691,7.99951348,3429.7,3429.6,0.001]
[1762582124881,7.58178826,3429.7,3429.6,0.001]
[1762582125049,7.99951348,3429.7,3429.6,0.001]
[1762582125254,7.58178826,3429.7,3429.6,0.001]
[1762582125747,6.75937508,3429.7,3429.6,0.001]
[1762582129142,8.31297339,3429.7,3429.6,0.001]
[1762582129992,7.20750851,3429.7,3429.6,0.4635]
[1762582130151,4.57234304,3429.7,3429.6,0.4635]
[1762582130350,3.53630961,3429.7,3429.6,0.4635]
[1762582130550,3.53630961,3429.7,3429.6,0.001]
[1762582130752,4.79602161,3429.7,3429.6,0.001]
[1762582133257,5.57327263,3429.7,3429.6,0.001]
[1762582133458,6.64065236,3429.7,3429.6,0.001]
[1762582133679,5.86340134,3429.7,3429.6,0.001]
[1762582134073,6.64050246,3429.7,3429.6,0.001]
[1762582135285,7.09785098,3429.7,3429.6,0.001]
[1762582136005,6.32074986,3429.7,3429.6,0.001]
[1762582136213,7.58396778,3429.7,3429.6,0.001]
[1762582136412,6.80604986,3429.7,3429.6,0.001]
[1762582137710,3.40504295,3429.7,3429.6,0.001]
[1762582138011,5.25337013,3429.7,3429.6,0.001]
[1762582138508,5.25337013,3429.7,3429.6,0.4635]
[1762582139315,6.28940356,3429.7,3429.6,0.4635]
[1762582139519,3.37369665,3429.7,3429.6,0.4635]
[1762582139681,2.33766322,3429.7,3429.6,0.9537]
[1762582139883,1.8803147,3429.7,3429.6,0.9537]
[1762582140122,0.6206027,3429.7,3429.6,0.9537]
[1762582140428,0.6206027,3429.7,3429.6,3.86949192]
[1762582140636,0.6206027,3429.7,3429.6,1.63244386]
[1762582141129,0.6206027,3429.7,3429.6,0.9537]